bitfinex/quotes_BTCUSD_20251102
["timestamp","ask_amount","ask_price","bid_price","bid_amount"]
[1762100455499,0.00910595,110070.0,110060.0,0.91470942]
[1762100455714,0.00910595,110070.0,110060.0,4.28724646]
[1762100456808,0.00910595,110070.0,110060.0,4.31358631]
[1762100458456,0.00110595,110070.0,110060.0,4.31358631]
[1762100458671,0.00110595,110070.0,110060.0,4.31458631]
[1762100458917,0.00410595,110070.0,110060.0,4.31458631]
[1762100461568,0.00410595,110070.0,110060.0,3.94204927]
[1762100461794,0.00410595,110070.0,110060.0,1.21307101]
[1762100462016,0.00410595,110070.0,110060.0,1.24925329]
[1762100463911,0.00410595,110070.0,110060.0,1.2392533]
[1762100464160,0.00410595,110070.0,110060.0,1.24925329]
[1762100466475,0.00410595,110070.0,110060.0,1.39725329]
[1762100470520,0.00410595,110070.0,110060.0,1.02471625]
[1762100470778,0.00410595,110070.0,110060.0,1.39725329]
[1762100471239,0.00410595,110070.0,110060.0,1.2392533]
[1762100471690,0.00410595,110070.0,110060.0,1.24925329]
[1762100472153,0.00410595,110070.0,110060.0,1.2392533]
[1762100472369,0.00410595,110070.0,110060.0,1.24925329]
[1762100473480,0.00410595,110070.0,110060.0,1.2392533]
[1762100473701,0.00410595,110070.0,110060.0,1.24925329]
[1762100474616,0.00410595,110070.0,110060.0,1.31458631]
[1762100475302,0.46028941,110110.0,110080.0,0.19076156]
[1762100475542,0.04852085,110110.0,110090.0,0.01816695]
[1762100475822,0.05914085,110110.0,110090.0,0.15576695]
[1762100476254,0.05914085,110110.0,110100.0,0.06082]
[1762100476482,0.05914085,110110.0,110100.0,0.19842]
[1762100476702,0.07514085,110110.0,110100.0,0.10602]
[1762100477193,0.06914085,110110.0,110100.0,0.10602]
[1762100477426,0.05914085,110110.0,110100.0,0.10602]
[1762100477668,0.08514085,110110.0,110100.0,0.1251853]
[1762100477888,0.08514085,110110.0,110100.0,0.10702]
[1762100478544,0.45737904,110110.0,110100.0,0.10702]
[1762100479406,0.44675904,110110.0,110100.0,0.38107304]
[1762100479824,0.07452085,110110.0,110100.0,0.38107304]
[1762100480037,0.07452085,110110.0,110100.0,0.19942]
[1762100480299,0.08514085,110110.0,110100.0,0.10702]
[1762100480545,0.45737904,110110.0,110100.0,0.1251853]
[1762100481026,0.44675904,110110.0,110100.0,0.2175853]
[1762100481240,0.04721848,110110.0,110100.0,0.38107304]
[1762100481453,0.04810273,110110.0,110100.0,0.38107304]
[1762100481897,0.04810273,110110.0,110100.0,0.19942]
[1762100482105,0.04810273,110110.0,110100.0,0.2175853]
[1762100482334,0.04810273,110110.0,110100.0,0.19942]
[1762100482750,0.04810273,110110.0,110100.0,0.38107304]
[1762100483196,0.04810273,110110.0,110100.0,0.19942]
[1762100483403,0.04810273,110110.0,110100.0,0.38107304]
[1762100483633,0.04810273,110110.0,110100.0,0.19942]
[1762100483848,0.05872273,110110.0,110100.0,0.19942]
[1762100484073,0.05872273,110110.0,110100.0,0.10702]
[1762100484292,0.05872273,110110.0,110100.0,0.1251853]
[1762100484506,0.05872273,110110.0,110100.0,0.2202553]
[1762100484754,0.04810273,110110.0,110100.0,0.20209]
[1762100485174,0.43096092,110110.0,110100.0,0.10702]
[1762100485397,0.43096092,110110.0,110100.0,0.1251853]
[1762100485604,0.05872273,110110.0,110100.0,0.1251853]
[1762100485812,0.43096092,110110.0,110100.0,0.1251853]
[1762100487745,0.46995092,110110.0,110100.0,0.0191653]
[1762100488210,0.46995092,110110.0,110100.0,0.001]
[1762100488211,0.09771273,110110.0,110100.0,0.001]
[1762100488441,0.46995092,110110.0,110100.0,0.0191653]
[1762100489569,0.43096092,110110.0,110100.0,0.0191653]
[1762100491418,0.46995092,110110.0,110100.0,0.001]
[1762100491870,0.49725329,110110.0,110100.0,0.001]
[1762100493444,0.1250151,110110.0,110100.0,0.001]
[1762100493664,0.49725329,110110.0,110100.0,0.001]
[1762100495909,0.1250151,110110.0,110100.0,0.001]
[1762100496094,0.49725329,110110.0,110100.0,0.001]
[1762100496794,0.45826329,110110.0,110100.0,0.001]
[1762100497023,0.0860251,110110.0,110100.0,0.06172]
[1762100497256,0.43096092,110110.0,110100.0,0.001]
[1762100497481,0.46995092,110110.0,110100.0,0.001]
[1762100498792,0.05872273,110110.0,110100.0,0.001]
[1762100499003,0.43096092,110110.0,110100.0,0.001]
[1762100499437,0.43096092,110110.0,110100.0,0.29061304]
[1762100500771,0.43096092,110110.0,110100.0,0.18265304]
[1762100501239,0.43096092,110110.0,110100.0,0.001]
[1762100501465,0.43096092,110110.0,110100.0,0.18265304]
[1762100503459,0.43096092,110110.0,110100.0,0.75792123]
[1762100503460,0.02693273,110110.0,110100.0,0.75792123]
[1762100503899,0.02693273,110110.0,110100.0,0.38568304]
[1762100504122,0.02693273,110110.0,110100.0,0.75792123]
[1762100504341,0.01093273,110110.0,110100.0,0.75692123]
[1762100504771,0.01993273,110110.0,110100.0,0.75692123]
[1762100505202,0.03110273,110110.0,110100.0,0.20303]
[1762100505448,0.04172273,110110.0,110100.0,0.10796]
[1762100505658,0.04672273,110110.0,110100.0,0.1261253]
[1762100506542,0.45795092,110110.0,110090.0,0.30742]
[1762100506775,0.41807667,110110.0,110090.0,0.48908941]
[1762100506996,0.41807667,110110.0,110090.0,0.48908794]
[1762100507216,0.41807667,110110.0,110090.0,0.30742]
[1762100507444,0.44806667,110110.0,110090.0,0.30742]
[1762100507666,0.41907667,110110.0,110090.0,0.48908937]
[1762100507877,0.41907667,110110.0,110090.0,0.30742]
[1762100507878,0.45806667,110110.0,110090.0,0.30742]
[1762100508314,0.45306667,110110.0,110090.0,0.30742]
[1762100508532,0.08582848,110110.0,110090.0,0.4890888]
[1762100508760,0.45806667,110110.0,110090.0,0.4890888]
[1762100509625,0.44744667,110110.0,110090.0,0.36792]
[1762100510504,0.40845667,110110.0,110090.0,0.54958397]
[1762100511867,0.40845667,110110.0,110090.0,0.36792]
[1762100512385,0.00066325,110100.0,110090.0,0.36792]
[1762100513096,0.01128325,110100.0,110090.0,0.27114]
[1762100513314,0.00066325,110100.0,110090.0,0.36792]
[1762100513534,0.00666325,110100.0,110090.0,0.36792]
[1762100514671,0.01728325,110100.0,110090.0,0.36792]
[1762100514886,0.00666325,110100.0,110090.0,0.36792]
[1762100515318,0.00966325,110100.0,110090.0,0.54958954]
[1762100515768,0.00966325,110100.0,110090.0,0.92182773]
[1762100518366,0.00966325,110100.0,110090.0,0.74015819]
[1762100518600,0.00966325,110100.0,110090.0,0.92182773]
[1762100519028,0.00366325,110100.0,110090.0,0.74015819]
[1762100519240,0.00366325,110100.0,110090.0,0.92182773]
[1762100519454,0.01366325,110100.0,110090.0,0.92182773]
[1762100519684,0.01066325,110100.0,110090.0,0.92182773]
[1762100519943,0.01566325,110100.0,110090.0,0.92182773]
[1762100520415,0.01566325,110100.0,110090.0,0.74015819]
[1762100520657,0.01566325,110100.0,110090.0,0.92182773]
[1762100527180,0.04296169,110100.0,110090.0,0.92182773]
[1762100529385,0.01566325,110100.0,110090.0,0.92182773]
[1762100529835,0.08662325,110100.0,110090.0,0.71730773]
[1762100530058,0.01566325,110100.0,110090.0,0.92173773]
[1762100531784,0.01566325,110100.0,110090.0,4.3301582]
[1762100531997,0.01566325,110100.0,110090.0,4.34015819]
[1762100532455,0.01566325,110100.0,110090.0,4.36745293]
[1762100532672,0.00566325,110100.0,110090.0,3.99521474]
[1762100533344,0.00066325,110100.0,110090.0,3.99521474]
[1762100533580,0.00066325,110100.0,110090.0,4.04426672]
[1762100534272,0.00066325,110100.0,110090.0,4.41650491]
[1762100534488,0.00266325,110100.0,110090.0,4.41650491]
[1762100534913,0.00566325,110100.0,110090.0,4.41650491]
[1762100536831,0.00566325,110100.0,110090.0,5.08969111]
[1762100537054,0.00566325,110100.0,110090.0,5.15502413]
[1762100537504,0.00566325,110100.0,110090.0,5.08969111]
[1762100537715,0.00066325,110100.0,110090.0,5.08969111]
[1762100537927,0.00066325,110100.0,110090.0,5.09069111]
[1762100538155,0.00066325,110100.0,110090.0,5.09369111]
[1762100538790,0.00066325,110100.0,110090.0,3.97697654]
[1762100539006,0.00066325,110100.0,110090.0,4.72145292]
[1762100539224,0.00066325,110100.0,110090.0,5.09369111]
[1762100540430,0.00066325,110100.0,110090.0,4.78612342]
[1762100542708,0.00066325,110100.0,110090.0,4.93412342]
[1762100543878,0.00066325,110100.0,110090.0,4.92412343]
[1762100544314,0.00066325,110100.0,110090.0,4.93412342]
[1762100546438,0.00066325,110100.0,110090.0,4.92412343]
[1762100546647,0.00066325,110100.0,110090.0,4.93412342]
[1762100548737,0.00066325,110100.0,110090.0,4.92412343]
[1762100549189,0.00066325,110100.0,110090.0,4.93412342]
[1762100549438,0.00066325,110100.0,110090.0,4.92412343]
[1762100550614,0.00066325,110100.0,110090.0,4.93412342]
[1762100550849,0.00066325,110100.0,110090.0,4.92412343]
[1762100551357,0.00066325,110100.0,110090.0,4.93412342]
[1762100552849,0.00066325,110100.0,110090.0,4.92412343]
[1762100553267,0.00066325,110100.0,110090.0,4.93412342]
[1762100554032,0.00066325,110100.0,110090.0,4.92412343]
[1762100554235,0.00066325,110100.0,110090.0,4.93412342]
[1762100556787,0.00066325,110100.0,110090.0,4.92412343]
[1762100557004,0.00066325,110100.0,110090.0,4.93412342]
[1762100559624,0.00066325,110100.0,110090.0,4.86884196]
[1762100560908,0.00066325,110100.0,110090.0,4.94989139]
[1762100562030,0.00066325,110100.0,110090.0,5.04573139]
[1762100562246,0.00066325,110100.0,110090.0,4.94989139]
[1762100567058,0.00066325,110100.0,110090.0,4.80189139]
[1762100570732,1e-08,110100.0,110090.0,4.80189139]
[1762100573133,1e-08,110100.0,110090.0,4.81102045]
[1762100574054,1e-08,110100.0,110090.0,5.18295316]
[1762100574269,4.848e-05,110110.0,110100.0,3.98170072]
[1762100574489,4.848e-05,110110.0,110100.0,4.72358003]
[1762100574738,4.848e-05,110110.0,110100.0,5.06358003]
[1762100575190,4.848e-05,110110.0,110100.0,5.06721835]
[1762100577063,4.848e-05,110110.0,110100.0,5.07021835]
[1762100577289,4.848e-05,110110.0,110100.0,5.07016243]
[1762100577502,4.848e-05,110110.0,110100.0,5.07516243]
[1762100578875,4.848e-05,110110.0,110100.0,5.14146668]
[1762100579125,4.848e-05,110110.0,110100.0,4.02566855]
[1762100579345,4.848e-05,110110.0,110100.0,5.14146668]
[1762100579790,4.848e-05,110110.0,110100.0,4.85119414]
[1762100580015,0.00026951,110110.0,110100.0,4.70319414]
[1762100580486,0.00026951,110110.0,110100.0,4.69319415]
[1762100580709,0.00026951,110110.0,110100.0,4.70319414]
[1762100581616,0.00026951,110110.0,110100.0,4.66701186]
[1762100581842,0.00026951,110110.0,110100.0,4.65701187]
[1762100582082,0.00026951,110110.0,110100.0,4.5703517]
[1762100582308,0.00026951,110110.0,110100.0,4.60653398]
[1762100582742,0.00026951,110110.0,110100.0,4.67886999]
[1762100583189,0.00026951,110110.0,110100.0,4.67986999]
[1762100583413,0.00026951,110110.0,110100.0,4.68086999]
[1762100584085,0.00026951,110110.0,110100.0,4.67087]
[1762100584524,0.00026951,110110.0,110100.0,4.29893729]
[1762100584964,0.00026951,110110.0,110100.0,4.29793729]
[1762100585409,0.00226951,110110.0,110100.0,4.29793729]
[1762100585848,0.00226951,110110.0,110100.0,4.29693729]
[1762100586117,0.00326951,110110.0,110100.0,4.67886999]
[1762100586346,0.00326951,110110.0,110100.0,4.61353397]
[1762100586784,0.00326951,110110.0,110100.0,4.3069499]
[1762100587005,0.00126951,110110.0,110100.0,4.29694991]
[1762100587223,0.00126951,110110.0,110100.0,3.5850172]
[1762100587447,0.00026951,110110.0,110100.0,4.23260127]
[1762100587889,0.00026951,110110.0,110100.0,4.23360127]
[1762100588122,0.00026951,110110.0,110100.0,4.29794991]
[1762100588559,0.00226951,110110.0,110100.0,4.29794991]
[1762100588995,0.00226951,110110.0,110100.0,4.29694991]
[1762100589459,0.00326951,110110.0,110100.0,4.29694991]
[1762100589681,0.00326951,110110.0,110100.0,4.28694992]
[1762100589895,0.00326951,110110.0,110100.0,4.23160127]
[1762100590573,0.00326951,110110.0,110100.0,4.22160128]
[1762100590792,0.00326951,110110.0,110100.0,4.23160127]
[1762100591708,0.00326951,110110.0,110100.0,4.29331159]
[1762100591955,0.00326951,110110.0,110100.0,4.2833116]
[1762100592176,0.00326951,110110.0,110100.0,4.29331159]
[1762100593934,0.00326951,110110.0,110100.0,4.2833116]
[1762100594241,0.00326951,110110.0,110100.0,4.29331159]
[1762100594460,0.00326951,110110.0,110100.0,3.92137888]
[1762100594713,0.00326951,110110.0,110100.0,4.2833116]
[1762100595864,0.00326951,110110.0,110100.0,4.8286443]
[1762100596093,0.00326951,110110.0,110100.0,4.83864429]
[1762100596551,0.00126951,110110.0,110100.0,4.83864429]
[1762100597033,0.00226951,110110.0,110100.0,4.83864429]
[1762100597500,0.00026951,110110.0,110100.0,4.83864429]
[1762100597937,0.00026951,110110.0,110100.0,4.83964429]
[1762100598163,0.00026951,110110.0,110100.0,4.09577887]
[1762100598386,0.00026951,110110.0,110100.0,4.45871159]
[1762100598606,0.00026951,110110.0,110100.0,4.46871158]
[1762100599045,0.00026951,110110.0,110100.0,4.45771159]
[1762100599261,0.00226951,110110.0,110100.0,4.45671159]
[1762100599482,0.00326951,110110.0,110100.0,4.45671159]
[1762100599966,0.00026951,110110.0,110100.0,4.45671159]
[1762100600209,0.00726951,110110.0,110100.0,4.45671159]
[1762100601113,0.00726951,110110.0,110100.0,4.4467116]
[1762100601328,0.00726951,110110.0,110100.0,4.45671159]
[1762100601565,0.00726951,110110.0,110100.0,4.46671158]
[1762100602420,0.00726951,110110.0,110100.0,4.83884805]
[1762100605135,0.00726951,110110.0,110100.0,4.82884806]
[1762100608164,0.00726951,110110.0,110100.0,4.83884805]
[1762100608602,0.00726951,110110.0,110100.0,4.82884806]
[1762100610203,0.00726951,110110.0,110100.0,4.97684806]
[1762100614639,0.00726951,110110.0,110100.0,4.92149941]
[1762100615503,0.00526951,110110.0,110100.0,5.01131842]
[1762100615716,0.00526951,110110.0,110100.0,5.46501318]
[1762100615943,0.00026951,110110.0,110100.0,5.46501318]
[1762100616161,0.00226951,110110.0,110100.0,5.46501318]
[1762100616376,0.00326951,110110.0,110100.0,5.46501318]
[1762100617059,0.00326951,110110.0,110100.0,4.34890941]
[1762100617284,0.00326951,110110.0,110100.0,5.09297859]
[1762100617541,0.00026951,110110.0,110100.0,5.09297859]
[1762100617762,0.00026951,110110.0,110100.0,5.09397859]
[1762100617983,0.00026951,110110.0,110100.0,5.09497859]
[1762100619778,0.00026951,110110.0,110100.0,5.46701318]
[1762100620219,0.00026951,110110.0,110100.0,5.09497859]
[1762100621727,1e-08,110110.0,110100.0,5.46701318]
[1762100625496,1e-08,110110.0,110100.0,5.09497859]
[1762100625716,1e-08,110110.0,110100.0,4.94697859]
[1762100627461,1e-08,110110.0,110100.0,4.9369786]
[1762100628387,1e-08,110110.0,110100.0,4.94597859]
[1762100628597,0.00200001,110110.0,110100.0,4.85331843]
[1762100629032,0.00200001,110110.0,110100.0,4.86331842]
[1762100629887,0.00300001,110110.0,110100.0,4.86331842]
[1762100630788,0.00300001,110110.0,110100.0,4.9349786]
[1762100631012,0.00300001,110110.0,110100.0,4.86331842]
[1762100631442,0.00300001,110110.0,110100.0,4.85331843]
[1762100633852,0.00300001,110110.0,110100.0,4.86331842]
[1762100635559,0.00300001,110110.0,110100.0,4.94497859]
[1762100636670,0.00300001,110110.0,110100.0,5.09297859]
[1762100640229,0.00300001,110110.0,110100.0,5.09213159]
[1762100641164,0.00300001,110110.0,110100.0,4.34806241]
[1762100641378,0.00300001,110110.0,110100.0,5.09213159]
[1762100641810,1e-08,110110.0,110100.0,6.82936995]
[1762100642053,0.0004,110130.0,110120.0,3.20162003]
[1762100642279,0.00088483,110130.0,110120.0,4.28190053]
[1762100642497,4.83e-06,110130.0,110120.0,4.67183829]
[1762100642721,0.0004,110140.0,110130.0,0.56778582]
[1762100642945,0.0004,110140.0,110130.0,4.70798752]
[1762100643401,0.0004,110140.0,110130.0,4.56998751]
[1762100643649,0.0004,110140.0,110130.0,4.65980652]
[1762100644329,0.0014,110140.0,110130.0,5.03184111]
[1762100644556,0.0014,110140.0,110130.0,4.66338459]
[1762100644821,0.0014,110140.0,110130.0,4.6533846]
[1762100645099,0.0014,110140.0,110130.0,4.594424]
[1762100645359,0.00144845,110140.0,110130.0,4.22238941]
[1762100645601,0.00144845,110140.0,110130.0,4.65972641]
[1762100647056,0.0004,110150.0,110140.0,3.98183851]
[1762100647295,0.0004,110150.0,110140.0,4.32969784]
[1762100647533,0.0004,110150.0,110140.0,4.26000123]
[1762100648406,0.0004,110150.0,110140.0,4.60000123]
[1762100648628,0.0004,110150.0,110140.0,4.97203582]
[1762100648846,0.00128377,110150.0,110140.0,4.97203582]
[1762100649963,0.00128377,110150.0,110140.0,4.99120582]
[1762100650187,0.00328377,110150.0,110140.0,4.99120582]
[1762100652169,0.00328377,110150.0,110140.0,4.98120583]
[1762100652384,0.00328377,110150.0,110140.0,4.99120582]
[1762100653529,0.00328377,110150.0,110140.0,4.95502354]
[1762100653823,1e-08,110150.0,110140.0,4.99120582]
[1762100655276,0.0004,110160.0,110150.0,3.20157056]
[1762100655539,0.0004,110160.0,110150.0,4.27015068]
[1762100655801,0.0004,110160.0,110150.0,4.68775068]
[1762100656048,0.0004,110160.0,110150.0,4.69138758]
[1762100656328,0.00044844,110160.0,110150.0,4.69138758]
[1762100656589,0.00027559,110170.0,110160.0,0.26811637]
[1762100656873,0.00027559,110170.0,110160.0,1.17514004]
[1762100657119,0.00027559,110170.0,110160.0,1.13895776]
[1762100657369,0.00027559,110170.0,110160.0,1.17514004]
[1762100657656,0.0004,110180.0,110170.0,3.22771989]
[1762100657883,0.0004,110190.0,110180.0,3.21770342]
[1762100658106,0.0004,110190.0,110180.0,4.22479161]
[1762100658755,0.0004,110190.0,110180.0,4.29167661]
[1762100659213,0.0034,110190.0,110180.0,4.3016766]
[1762100659441,0.0034,110190.0,110180.0,3.95643441]
[1762100659683,0.0034,110190.0,110180.0,4.72777253]
[1762100659910,0.0044,110190.0,110180.0,5.09980712]
[1762100660612,0.0034,110190.0,110180.0,5.09980712]
[1762100661086,0.0004,110190.0,110180.0,5.05098012]
[1762100661327,0.0004,110190.0,110180.0,5.09970122]
[1762100661594,0.0004,110200.0,110190.0,0.57768693]
[1762100661829,0.0004,110200.0,110190.0,4.62369863]
[1762100662497,0.0004,110200.0,110190.0,4.57351627]
[1762100663191,0.0004,110200.0,110190.0,4.20421131]
[1762100663653,0.0004,110200.0,110190.0,4.57551627]
[1762100664116,0.00044843,110200.0,110190.0,4.57851627]
[1762100664555,0.00044843,110200.0,110190.0,4.57551627]
[1762100664998,0.00044843,110200.0,110190.0,3.83290635]
[1762100665217,0.00044843,110200.0,110190.0,4.20221131]
[1762100666389,0.00044843,110200.0,110190.0,3.83090635]
[1762100666613,0.00044843,110200.0,110190.0,4.20221131]
[1762100667295,0.00066919,110200.0,110190.0,4.20221131]
[1762100669595,0.00066919,110200.0,110190.0,4.22947926]
[1762100672266,0.00066919,110200.0,110190.0,3.8581743]
[1762100672493,0.00739919,110200.0,110190.0,3.33808637]
[1762100672962,0.00739919,110200.0,110190.0,3.38861637]
[1762100673411,0.00739919,110200.0,110190.0,3.33808637]
[1762100673632,0.01139919,110200.0,110190.0,3.38861637]
[1762100674098,0.01139919,110200.0,110190.0,3.03013449]
[1762100674321,0.01812919,110200.0,110190.0,3.21163916]
[1762100674564,0.01812919,110200.0,110180.0,0.22190114]
[1762100674764,0.01139919,110200.0,110190.0,0.18150467]
[1762100674989,0.00466919,110200.0,110190.0,0.23203467]
[1762100675204,0.01139919,110200.0,110190.0,0.23203467]
[1762100675887,0.01139919,110200.0,110190.0,0.18150467]
[1762100676109,0.01812919,110200.0,110190.0,0.18150467]
[1762100676558,0.01512919,110200.0,110190.0,0.18150467]
[1762100676906,0.01812919,110200.0,110190.0,0.22184525]
[1762100677133,0.01812919,110200.0,110190.0,0.18150467]
[1762100677364,0.01512919,110200.0,110190.0,0.18150467]
[1762100677811,0.01812919,110200.0,110190.0,0.18150467]
[1762100678703,0.01812919,110200.0,110190.0,3.0]
[1762100679597,0.01812919,110200.0,110190.0,3.18150467]
[1762100679820,0.01812919,110200.0,110190.0,0.27132368]
[1762100680039,0.01812919,110200.0,110190.0,0.18150467]
[1762100680936,0.01139919,110200.0,110190.0,0.18150467]
[1762100681365,0.01139919,110200.0,110190.0,0.19965513]
[1762100681586,0.01139919,110200.0,110190.0,0.18150467]
[1762100682983,0.01812919,110200.0,110190.0,0.18150467]
[1762100683687,0.01812919,110200.0,110190.0,3.0]
[1762100683908,0.01812919,110200.0,110190.0,3.08981901]
[1762100684152,0.01812919,110200.0,110190.0,0.08981901]
[1762100684372,0.01812919,110200.0,110190.0,0.18150467]
[1762100684655,0.01812919,110200.0,110180.0,0.18151909]
[1762100684895,0.00032,110190.0,110180.0,3.23585348]
[1762100685113,0.00032,110190.0,110180.0,3.21770137]
[1762100685346,0.00064,110190.0,110180.0,3.21770137]
[1762100685571,0.00064,110190.0,110180.0,3.27134015]
[1762100685777,0.00466919,110200.0,110190.0,3.0]
[1762100686010,0.00098919,110200.0,110190.0,0.27094467]
[1762100686235,0.00398919,110200.0,110190.0,0.27094467]
[1762100686460,0.00398919,110200.0,110190.0,0.16855]
[1762100686691,0.00098919,110200.0,110190.0,0.19868449]
[1762100686901,0.00098919,110200.0,110190.0,0.11957449]
[1762100687134,0.00398919,110200.0,110190.0,0.11957449]
[1762100687377,0.00398919,110200.0,110190.0,0.08944]
[1762100687617,0.37529415,110200.0,110190.0,3.0]
[1762100687846,0.37629415,110200.0,110190.0,0.04973]
[1762100688297,0.00498919,110200.0,110190.0,0.08944]
[1762100688946,0.00466919,110200.0,110190.0,0.16855]
[1762100689164,0.00498919,110200.0,110190.0,0.08944]
[1762100690033,0.37629415,110200.0,110180.0,0.20311]
[1762100690275,0.37194496,110190.0,110180.0,0.1634]
[1762100691191,0.38086995,110190.0,110180.0,0.1634]
[1762100691620,0.40814886,110190.0,110180.0,0.1634]
[1762100691827,0.40914886,110190.0,110180.0,0.1634]
[1762100692343,0.40022387,110190.0,110180.0,0.1634]
[1762100692986,0.40942831,110190.0,110180.0,0.1634]
[1762100693206,0.41142831,110190.0,110180.0,0.1634]
[1762100693422,0.40222387,110190.0,110180.0,0.1634]
[1762100694332,0.74222387,110190.0,110180.0,0.1634]
[1762100695219,0.73922387,110190.0,110180.0,0.1634]
[1762100695444,0.75214532,110190.0,110180.0,0.1634]
[1762100695650,0.75914532,110190.0,110180.0,0.1634]
[1762100696124,0.75214532,110190.0,110180.0,0.1634]
[1762100696978,0.76314532,110190.0,110180.0,0.1644]
[1762100697191,0.75914532,110190.0,110180.0,0.1644]
[1762100697622,0.76414532,110190.0,110180.0,0.1644]
[1762100699991,1.22526929,110190.0,110180.0,0.1644]
[1762100700444,1.13545028,110190.0,110180.0,0.1644]
[1762100702062,0.75490387,110190.0,110180.0,0.21413]
[1762100702515,0.75522387,110190.0,110180.0,0.1644]
[1762100702748,1.31725253,110190.0,110180.0,0.1644]
[1762100703910,1.13574786,110190.0,110180.0,0.1644]
[1762100705480,0.7641229,110190.0,110180.0,0.18084]
[1762100705701,0.7641229,110190.0,110180.0,0.1644]
[1762100705937,0.75490387,110190.0,110180.0,0.21413]
[1762100706644,0.76374939,110190.0,110180.0,0.1644]
[1762100706877,0.75490387,110190.0,110180.0,0.1644]
[1762100707610,0.75490387,110190.0,110180.0,0.21413]
[1762100708318,0.75490387,110190.0,110180.0,0.1644]
[1762100708800,0.75522387,110190.0,110180.0,0.1644]
[1762100709488,0.75522387,110190.0,110180.0,0.34592114]
[1762100709712,0.75522387,110190.0,110180.0,0.1644]
[1762100710590,0.38391891,110190.0,110180.0,0.1644]
[1762100710844,0.04359891,110190.0,110180.0,4.06021971]
[1762100711087,0.016,110190.0,110180.0,4.05681694]
[1762100711580,0.005,110190.0,110180.0,4.05581694]
[1762100711821,0.005,110190.0,110180.0,4.10454004]
[1762100712057,0.00066919,110200.0,110190.0,0.18150467]
[1762100712293,0.00098919,110200.0,110190.0,0.74575995]
[1762100712521,0.00066919,110200.0,110190.0,0.84290177]
[1762100712766,0.00066919,110200.0,110190.0,0.89162487]
[1762100712995,0.00066919,110200.0,110190.0,4.26292983]
[1762100713225,0.00066919,110200.0,110190.0,3.89162487]
[1762100714422,0.00066919,110200.0,110190.0,3.89262487]
[1762100715191,0.00066919,110200.0,110190.0,3.89362487]
[1762100715418,0.00066919,110200.0,110190.0,3.52231991]
[1762100715648,0.00066919,110200.0,110190.0,3.89362487]
[1762100716341,0.00066919,110200.0,110190.0,3.92089413]
[1762100716585,0.00066919,110200.0,110190.0,4.30219908]
[1762100719177,0.00066919,110200.0,110190.0,4.2660168]
[1762100719418,0.00066919,110200.0,110190.0,4.30219908]
[1762100723414,0.00066919,110200.0,110190.0,4.25347598]
[1762100723631,0.00066919,110200.0,110190.0,3.51086606]
[1762100723857,0.00066919,110200.0,110190.0,3.88217102]
[1762100724303,0.0291558,110210.0,110200.0,0.1814882]
[1762100724519,0.0291558,110210.0,110200.0,4.1294793]
[1762100724738,0.0291558,110210.0,110200.0,3.73993616]
[1762100724964,0.0291558,110210.0,110200.0,3.76720394]
[1762100725858,0.0291558,110210.0,110200.0,4.13859826]
[1762100727163,0.0301558,110210.0,110200.0,4.13859826]
[1762100728737,0.0301558,110210.0,110200.0,3.39580962]
[1762100728953,0.0301558,110210.0,110200.0,4.13859826]
[1762100729849,0.0301558,110210.0,110200.0,3.39580962]
[1762100730070,0.03037652,110210.0,110200.0,4.13859826]
[1762100735128,0.03037652,110210.0,110200.0,4.30199826]
[1762100735650,0.03037652,110210.0,110200.0,4.34818053]
[1762100735862,0.03037652,110210.0,110200.0,3.65411499]
[1762100736080,0.03037652,110210.0,110200.0,4.39690363]
[1762100736306,0.02937652,110210.0,110200.0,4.39690363]
[1762100736757,0.02937652,110210.0,110200.0,4.39890363]
[1762100737220,0.02937652,110210.0,110200.0,4.39990363]
[1762100739266,0.02937652,110210.0,110200.0,4.54790363]
[1762100740422,0.02937652,110210.0,110200.0,5.27585308]
[1762100740690,0.02937652,110210.0,110200.0,4.91445875]
[1762100740933,0.02937652,110210.0,110200.0,4.90445876]
[1762100741184,0.02937652,110210.0,110200.0,4.91445875]
[1762100742766,0.02937652,110210.0,110200.0,4.84918052]
[1762100742979,0.02937652,110210.0,110200.0,4.83918053]
[1762100743208,0.02937652,110210.0,110200.0,4.84918052]
[1762100744091,0.02937652,110210.0,110200.0,4.91450853]
[1762100744311,0.02937652,110210.0,110200.0,4.17171989]
[1762100744532,0.02937652,110210.0,110200.0,4.91450853]
[1762100745422,0.02937652,110210.0,110200.0,4.90450854]
[1762100745643,0.02937652,110210.0,110200.0,4.91450853]
[1762100746316,0.02937652,110210.0,110200.0,4.75650854]
[1762100746544,0.02937652,110210.0,110200.0,4.76650853]
[1762100746757,0.02937652,110210.0,110200.0,4.02371989]
[1762100746990,0.02937652,110210.0,110200.0,4.39511421]
[1762100747200,0.02937652,110210.0,110200.0,4.38511422]
[1762100747414,0.02937652,110210.0,110200.0,4.39511421]
[1762100748061,0.02937652,110210.0,110200.0,4.02371989]
[1762100748298,0.02937652,110210.0,110200.0,4.39511421]
[1762100748739,0.02937652,110210.0,110200.0,4.76650853]
[1762100748961,0.02937652,110210.0,110200.0,4.75650854]
[1762100749181,0.02937652,110210.0,110200.0,3.44337943]
[1762100749401,0.02937652,110210.0,110200.0,3.60853701]
[1762100749912,0.02937652,110210.0,110200.0,3.55953962]
[1762100750448,0.02937652,110210.0,110200.0,0.60853697]
[1762100750654,0.02937652,110210.0,110200.0,0.64120312]
[1762100751077,0.02937652,110210.0,110200.0,0.61393534]
[1762100753698,0.02937652,110210.0,110200.0,0.56493799]
[1762100755467,0.02937652,110210.0,110200.0,0.31430979]
[1762100755902,0.4234548,110210.0,110200.0,0.19906615]
[1762100756117,0.40077084,110210.0,110200.0,0.19906615]
[1762100756552,0.40077084,110210.0,110200.0,0.1664]
[1762100756770,0.40077084,110210.0,110200.0,0.1644]
[1762100756983,0.40077084,110210.0,110200.0,0.208]
[1762100757200,0.40277084,110210.0,110200.0,0.208]
[1762100757839,0.40277084,110210.0,110200.0,0.1634]
[1762100758046,0.40777084,110210.0,110200.0,0.1634]
[1762100758487,0.40277084,110210.0,110200.0,0.1634]
[1762100758917,0.40777084,110210.0,110200.0,0.1634]
[1762100760502,1.84025266,110210.0,110200.0,0.1634]
[1762100761016,1.89226136,110210.0,110200.0,0.1634]
[1762100761137,1.90672805,110210.0,110200.0,0.1634]
[1762100761375,1.23170987,110210.0,110200.0,0.1634]
[1762100761601,1.4241816,110210.0,110200.0,0.1644]
[1762100762140,1.22970987,110210.0,110200.0,0.1634]
[1762100762359,1.4321816,110210.0,110200.0,0.1644]
[1762100762581,1.4261816,110210.0,110200.0,0.1644]
[1762100762825,0.87331555,110210.0,110200.0,0.1644]
[1762100763085,1.40490182,110210.0,110200.0,0.1644]
[1762100763554,1.22343009,110210.0,110200.0,0.1644]
[1762100763780,1.22343009,110210.0,110200.0,0.1626]
[1762100764959,1.22343009,110210.0,110200.0,0.2072]
[1762100764960,0.76177084,110210.0,110200.0,0.2072]
[1762100765417,0.42177084,110210.0,110200.0,0.1626]